[Event "Titled Tuesday Blitz January 10 Late 2023"]
[White "Karttunen, Mika"]
[Black "Mikhailov, Viacheslav"]
[WhiteFideId "502081"]
[BlackFideId "4187369"]
[WhiteElo "2490"]
[BlackElo "2428"]
[Result "0-1"]
[Round "10"]
[TimeControl "180+2"]
[Date "2023.01.10"]
[WhiteClock "0:00:03"]
[BlackClock "0:00:11"]

1. d4 {[%clk 0:00:00]}  c5 {[%clk 0:00:00]} 2. d5 {[%clk 0:03:00]}  e5 {[%clk 0:03:00]} 3. e4 {[%clk 0:03:00]}  d6 {[%clk 0:03:00]} 4. Nf3 {[%clk 0:02:59]}  a6 {[%clk 0:03:00]} 5. a4 {[%clk 0:02:53]}  Be7 {[%clk 0:03:00]} 6. h3 {[%clk 0:02:50]}  f5 {[%clk 0:02:58]} 7. Nc3 {[%clk 0:02:49]}  Nf6 {[%clk 0:02:55]} 8. Bc4 {[%clk 0:02:43]}  Nxe4 {[%clk 0:02:49]} 9. Nxe4 {[%clk 0:02:24]}  fxe4 {[%clk 0:02:45]} 10. Nd2 {[%clk 0:02:21]}  Bf5 {[%clk 0:02:46]} 11. h4 {[%clk 0:02:21]}  e3 {[%clk 0:02:44]} 12. Nf3 {[%clk 0:01:20]}  exf2+ {[%clk 0:02:32]} 13. Kxf2 {[%clk 0:01:05]}  O-O {[%clk 0:02:30]} 14. Kg3 {[%clk 0:01:05]}  h6 {[%clk 0:02:30]} 15. Be3 {[%clk 0:01:04]}  Nd7 {[%clk 0:02:14]} 16. h5 {[%clk 0:00:59]}  Nf6 {[%clk 0:02:14]} 17. Qe1 {[%clk 0:00:49]}  Qe8 {[%clk 0:02:12]} 18. Kh2 {[%clk 0:00:39]}  Qxh5+ {[%clk 0:01:53]} 19. Kg1 {[%clk 0:00:35]}  Qf7 {[%clk 0:01:47]} 20. Ra3 {[%clk 0:00:36]}  Ng4 {[%clk 0:01:43]} 21. Bc1 {[%clk 0:00:26]}  e4 {[%clk 0:01:38]} 22. Nh4 {[%clk 0:00:24]}  Bh7 {[%clk 0:01:27]} 23. Rg3 {[%clk 0:00:19]}  h5 {[%clk 0:01:26]} 24. Be2 {[%clk 0:00:16]}  e3 {[%clk 0:01:25]} 25. Bxg4 {[%clk 0:00:13]}  Qf2+ {[%clk 0:00:31]} 26. Qxf2 {[%clk 0:00:12]}  exf2+ {[%clk 0:00:32]} 27. Kf1 {[%clk 0:00:10]}  hxg4 {[%clk 0:00:32]} 28. Rxg4 {[%clk 0:00:11]}  Bxc2 {[%clk 0:00:32]} 29. Nf3 {[%clk 0:00:08]}  Bf5 {[%clk 0:00:33]} 30. Rg3 {[%clk 0:00:08]}  Bf6 {[%clk 0:00:20]} 31. Kxf2 {[%clk 0:00:04]}  Rae8 {[%clk 0:00:16]} 32. Bg5 {[%clk 0:00:04]}  Be4 {[%clk 0:00:17]} 33. Bxf6 {[%clk 0:00:04]}  Rxf6 {[%clk 0:00:16]} 34. Rh5 {[%clk 0:00:03]}  Re7 {[%clk 0:00:16]} 35. Rhg5 {[%clk 0:00:03]}  b5 {[%clk 0:00:12]} 36. R3g4 {[%clk 0:00:03]}  bxa4 {[%clk 0:00:12]} 37. Rh4 {[%clk 0:00:04]}  Bxf3 {[%clk 0:00:11]} 38. gxf3 {[%clk 0:00:03]}  Rb7 {[%clk 0:00:10]} 39. Rgh5 {[%clk 0:00:03]}  Rxb2+ {[%clk 0:00:10]} 40. Kg3 {[%clk 0:00:03]}  Rb3 {[%clk 0:00:10]} 41. Rh8+ {[%clk 0:00:04]}  Kf7 {[%clk 0:00:10]} 42. Ra8 {[%clk 0:00:03]}  Rbxf3+ {[%clk 0:00:11]} 43. Kg2 {[%clk 0:00:03]}  R3f4 {[%clk 0:00:11]} 44. Rhh8 {[%clk 0:00:04]}  Rg6+ {[%clk 0:00:11]} 45. Kh3 {[%clk 0:00:03]}  Rh6+ {[%clk 0:00:09]} 46. Rxh6 {[%clk 0:00:03]}  gxh6 {[%clk 0:00:10]} 47. Rxa6 {[%clk 0:00:03]}  Ke7 {[%clk 0:00:11]} 48. Ra7+ {[%clk 0:00:04]}  Kf6 {[%clk 0:00:11]} 49. Rh7 {[%clk 0:00:04]}  Ke5 {[%clk 0:00:11]} 50. Rxh6 {[%clk 0:00:03]}  Kxd5 {[%clk 0:00:11]} 0-1


[Site "https://www.chess.com"]

[Event "Titled Tuesday Blitz January 10 Late 2023"]
[White "Papasimakopoulos, Alexandros"]
[Black "Yurovskykh, Oleksandr"]
[WhiteFideId "4244125"]
[BlackFideId "14134020"]
[WhiteElo "2401"]
[BlackElo "2328"]
[Result "0-1"]
[Round "10"]
[TimeControl "180+2"]
[Date "2023.01.10"]
[WhiteClock "0:00:57"]
[BlackClock "0:00:17"]

1. d4 {[%clk 0:00:00]}  d5 {[%clk 0:00:00]} 2. c4 {[%clk 0:03:00]}  dxc4 {[%clk 0:02:59]} 3. Nf3 {[%clk 0:03:01]}  Nf6 {[%clk 0:02:57]} 4. e3 {[%clk 0:03:01]}  e6 {[%clk 0:02:58]} 5. Bxc4 {[%clk 0:03:01]}  c5 {[%clk 0:02:58]} 6. O-O {[%clk 0:03:01]}  Nc6 {[%clk 0:02:59]} 7. Nc3 {[%clk 0:03:02]}  cxd4 {[%clk 0:03:00]} 8. exd4 {[%clk 0:02:57]}  Be7 {[%clk 0:03:00]} 9. Re1 {[%clk 0:02:57]}  O-O {[%clk 0:03:00]} 10. a3 {[%clk 0:02:55]}  b6 {[%clk 0:03:00]} 11. Bg5 {[%clk 0:02:54]}  Bb7 {[%clk 0:03:00]} 12. Rc1 {[%clk 0:02:54]}  Rc8 {[%clk 0:03:00]} 13. Qd3 {[%clk 0:02:54]}  Nd5 {[%clk 0:02:56]} 14. Bd2 {[%clk 0:02:54]}  Nxc3 {[%clk 0:02:52]} 15. bxc3 {[%clk 0:02:39]}  Bxa3 {[%clk 0:02:45]} 16. Rcd1 {[%clk 0:02:39]}  Bd6 {[%clk 0:02:41]} 17. Ba2 {[%clk 0:02:37]}  Ne7 {[%clk 0:02:39]} 18. Ng5 {[%clk 0:02:37]}  Ng6 {[%clk 0:02:33]} 19. Rxe6 {[%clk 0:02:32]}  fxe6 {[%clk 0:01:52]} 20. Qh3 {[%clk 0:02:31]}  h6 {[%clk 0:01:41]} 21. Nxe6 {[%clk 0:02:30]}  Qf6 {[%clk 0:01:30]} 22. Nxf8+ {[%clk 0:02:30]}  Kxf8 {[%clk 0:01:27]} 23. Re1 {[%clk 0:02:16]}  Re8 {[%clk 0:01:27]} 24. Rxe8+ {[%clk 0:02:09]}  Kxe8 {[%clk 0:01:18]} 25. Qg4 {[%clk 0:01:43]}  Nf4 {[%clk 0:01:19]} 26. g3 {[%clk 0:01:38]}  Nd5 {[%clk 0:00:46]} 27. Qe4+ {[%clk 0:01:29]}  Qe7 {[%clk 0:00:38]} 28. Qg6+ {[%clk 0:01:24]}  Kd8 {[%clk 0:00:35]} 29. c4 {[%clk 0:01:24]}  Nf6 {[%clk 0:00:33]} 30. c5 {[%clk 0:01:23]}  bxc5 {[%clk 0:00:32]} 31. dxc5 {[%clk 0:01:18]}  Bxc5 {[%clk 0:00:31]} 32. Qd3+ {[%clk 0:01:18]}  Qd6 {[%clk 0:00:29]} 33. Qe2 {[%clk 0:01:17]}  Ne4 {[%clk 0:00:27]} 34. Ba5+ {[%clk 0:01:14]}  Kc8 {[%clk 0:00:24]} 35. Be1 {[%clk 0:01:10]}  Qd4 {[%clk 0:00:20]} 36. h4 {[%clk 0:01:09]}  Kb8 {[%clk 0:00:19]} 37. h5 {[%clk 0:01:04]}  a6 {[%clk 0:00:19]} 38. Qf3 {[%clk 0:01:01]}  Ka7 {[%clk 0:00:19]} 39. Qf7 {[%clk 0:01:00]}  Qd1 {[%clk 0:00:19]} 40. Kf1 {[%clk 0:00:53]}  Nd2+ {[%clk 0:00:15]} 41. Kg1 {[%clk 0:00:53]}  Qxe1+ {[%clk 0:00:15]} 42. Kh2 {[%clk 0:00:52]}  Qxf2+ {[%clk 0:00:15]} 43. Kh3 {[%clk 0:00:52]}  Qxf7 {[%clk 0:00:15]} 44. Bxf7 {[%clk 0:00:53]}  Bc8+ {[%clk 0:00:13]} 45. g4 {[%clk 0:00:53]}  Ne4 {[%clk 0:00:13]} 46. Ba2 {[%clk 0:00:53]}  Nf6 {[%clk 0:00:12]} 47. Kh4 {[%clk 0:00:52]}  Bxg4 {[%clk 0:00:12]} 48. Bc4 {[%clk 0:00:52]}  Bxh5 {[%clk 0:00:12]} 49. Bd3 {[%clk 0:00:52]}  g5+ {[%clk 0:00:12]} 50. Kg3 {[%clk 0:00:51]}  Bd6+ {[%clk 0:00:13]} 51. Kh3 {[%clk 0:00:52]}  Bg4+ {[%clk 0:00:13]} 52. Kg2 {[%clk 0:00:52]}  Be6 {[%clk 0:00:13]} 53. Be2 {[%clk 0:00:52]}  h5 {[%clk 0:00:14]} 54. Bxh5 {[%clk 0:00:52]}  Nxh5 {[%clk 0:00:14]} 55. Kf3 {[%clk 0:00:51]}  Nf6 {[%clk 0:00:14]} 56. Kg2 {[%clk 0:00:52]}  Kb6 {[%clk 0:00:14]} 57. Kf3 {[%clk 0:00:52]}  a5 {[%clk 0:00:15]} 58. Ke3 {[%clk 0:00:53]}  a4 {[%clk 0:00:16]} 59. Kd3 {[%clk 0:00:53]}  a3 {[%clk 0:00:17]} 60. Kc2 {[%clk 0:00:54]}  a2 {[%clk 0:00:18]} 61. Kb2 {[%clk 0:00:55]}  Be5+ {[%clk 0:00:18]} 62. Kc2 {[%clk 0:00:55]}  a1=Q {[%clk 0:00:18]} 63. Kd3 {[%clk 0:00:55]}  Qc3+ {[%clk 0:00:18]} 64. Ke2 {[%clk 0:00:56]}  Bg4+ {[%clk 0:00:19]} 65. Kf1 {[%clk 0:00:56]}  Qf3+ {[%clk 0:00:19]} 66. Kg1 {[%clk 0:00:56]}  Bd4+ {[%clk 0:00:19]} 67. Kh2 {[%clk 0:00:56]}  Qf2+ {[%clk 0:00:16]} 68. Kh1 {[%clk 0:00:57]}  Qg1# {[%clk 0:00:17]} 0-1


[Site "https://www.chess.com"]

[Event "Titled Tuesday Blitz January 10 Late 2023"]
[White "Vlassov, Nikolai"]
[Black "Hoffmann, Asa"]
[WhiteFideId "4103360"]
[BlackFideId "2001470"]
[WhiteElo "2283"]
[BlackElo "2185"]
[Result "1-0"]
[Round "10"]
[TimeControl "180+2"]
[Date "2023.01.10"]
[WhiteClock "0:00:18"]
[BlackClock "0:00:27"]

1. e4 {[%clk 0:00:00]}  d6 {[%clk 0:00:00]} 2. f4 {[%clk 0:03:00]}  c6 {[%clk 0:02:59]} 3. Nf3 {[%clk 0:03:00]}  g6 {[%clk 0:02:58]} 4. Nc3 {[%clk 0:03:00]}  Bg7 {[%clk 0:02:57]} 5. Bc4 {[%clk 0:03:00]}  e6 {[%clk 0:02:56]} 6. Bb3 {[%clk 0:02:58]}  d5 {[%clk 0:02:51]} 7. d3 {[%clk 0:02:56]}  Nf6 {[%clk 0:02:51]} 8. O-O {[%clk 0:02:55]}  Na6 {[%clk 0:02:49]} 9. e5 {[%clk 0:02:54]}  Ng4 {[%clk 0:02:38]} 10. d4 {[%clk 0:02:36]}  h5 {[%clk 0:02:31]} 11. Ne2 {[%clk 0:02:34]}  c5 {[%clk 0:02:30]} 12. c3 {[%clk 0:02:31]}  Bd7 {[%clk 0:02:28]} 13. Ng5 {[%clk 0:02:31]}  Qc7 {[%clk 0:02:24]} 14. g3 {[%clk 0:02:21]}  Bb5 {[%clk 0:02:17]} 15. h3 {[%clk 0:02:04]}  Nh6 {[%clk 0:02:08]} 16. Rf2 {[%clk 0:01:50]}  Bxe2 {[%clk 0:02:04]} 17. Qxe2 {[%clk 0:01:45]}  cxd4 {[%clk 0:02:04]} 18. cxd4 {[%clk 0:01:44]}  Nf5 {[%clk 0:02:01]} 19. Ba4+ {[%clk 0:01:44]}  Kf8 {[%clk 0:02:01]} 20. Qd3 {[%clk 0:01:41]}  Nb4 {[%clk 0:01:56]} 21. Qa3 {[%clk 0:01:28]}  a5 {[%clk 0:01:50]} 22. Bd2 {[%clk 0:01:26]}  Qe7 {[%clk 0:01:50]} 23. Bc3 {[%clk 0:01:24]}  Nxg3 {[%clk 0:01:45]} 24. Bxb4 {[%clk 0:01:20]}  axb4 {[%clk 0:01:43]} 25. Qxg3 {[%clk 0:01:16]}  Rxa4 {[%clk 0:01:35]} 26. Rc1 {[%clk 0:01:15]}  Ra8 {[%clk 0:01:35]} 27. Rfc2 {[%clk 0:01:15]}  Bh6 {[%clk 0:01:33]} 28. Rc7 {[%clk 0:01:12]}  Bxg5 {[%clk 0:01:31]} 29. fxg5 {[%clk 0:01:08]}  Qe8 {[%clk 0:01:26]} 30. Qf4 {[%clk 0:00:57]}  Rh7 {[%clk 0:01:21]} 31. Qf6 {[%clk 0:00:53]}  Rg7 {[%clk 0:01:20]} 32. Rxb7 {[%clk 0:00:42]}  Rc8 {[%clk 0:01:15]} 33. Qe7+ {[%clk 0:00:38]}  Kg8 {[%clk 0:01:00]} 34. Qxe8+ {[%clk 0:00:26]}  Rxe8 {[%clk 0:00:57]} 35. Rxb4 {[%clk 0:00:22]}  h4 {[%clk 0:00:56]} 36. Kf2 {[%clk 0:00:23]}  Rh7 {[%clk 0:00:54]} 37. Ke3 {[%clk 0:00:21]}  Kg7 {[%clk 0:00:54]} 38. Rc7 {[%clk 0:00:20]}  Rhh8 {[%clk 0:00:49]} 39. Rbb7 {[%clk 0:00:19]}  Rhf8 {[%clk 0:00:46]} 40. a4 {[%clk 0:00:19]}  Ra8 {[%clk 0:00:46]} 41. b3 {[%clk 0:00:19]}  Ra5 {[%clk 0:00:45]} 42. Rc6 {[%clk 0:00:19]}  Kg8 {[%clk 0:00:42]} 43. Rcb6 {[%clk 0:00:19]}  Kg7 {[%clk 0:00:37]} 44. Rb8 {[%clk 0:00:18]}  Rxb8 {[%clk 0:00:35]} 45. Rxb8 {[%clk 0:00:18]}  Ra7 {[%clk 0:00:35]} 46. Rb5 {[%clk 0:00:18]}  Kf8 {[%clk 0:00:33]} 47. a5 {[%clk 0:00:17]}  Ke7 {[%clk 0:00:29]} 48. b4 {[%clk 0:00:17]}  Kd7 {[%clk 0:00:29]} 49. Rb6 {[%clk 0:00:18]}  Kc7 {[%clk 0:00:29]} 50. Kd2 {[%clk 0:00:18]}  Ra8 {[%clk 0:00:29]} 51. Kc3 {[%clk 0:00:18]}  Rc8 {[%clk 0:00:28]} 52. Rb5 {[%clk 0:00:18]}  Kd7+ {[%clk 0:00:27]} 53. Rc5 {[%clk 0:00:17]}  Ra8 {[%clk 0:00:27]} 54. Kb3 {[%clk 0:00:18]} 1-0


[Site "https://www.chess.com"]

[Event "Titled Tuesday Blitz January 10 Late 2023"]
[White "Ansh M Shah"]
[Black "Ibarra Jerez, Jose Carlos"]
[WhiteFideId "25033379"]
[BlackFideId "2226332"]
[WhiteElo "2171"]
[BlackElo "2563"]
[Result "0-1"]
[Round "10"]
[TimeControl "180+2"]
[Date "2023.01.10"]
[WhiteClock "0:00:01"]
[BlackClock "0:00:58"]

1. d4 {[%clk 0:00:00]}  Nf6 {[%clk 0:00:00]} 2. c4 {[%clk 0:03:00]}  d6 {[%clk 0:02:59]} 3. Nc3 {[%clk 0:03:01]}  e5 {[%clk 0:02:59]} 4. d5 {[%clk 0:03:00]}  Nbd7 {[%clk 0:02:59]} 5. e4 {[%clk 0:03:00]}  Nc5 {[%clk 0:02:59]} 6. Bd3 {[%clk 0:03:01]}  a5 {[%clk 0:02:59]} 7. Be3 {[%clk 0:03:00]}  c6 {[%clk 0:03:00]} 8. f3 {[%clk 0:03:00]}  a4 {[%clk 0:02:58]} 9. Nge2 {[%clk 0:02:59]}  Qb6 {[%clk 0:02:58]} 10. Qd2 {[%clk 0:02:56]}  Qxb2 {[%clk 0:02:57]} 11. Rb1 {[%clk 0:02:56]}  Qxd2+ {[%clk 0:02:56]} 12. Kxd2 {[%clk 0:02:39]}  Nfd7 {[%clk 0:02:51]} 13. Bc2 {[%clk 0:02:40]}  Be7 {[%clk 0:02:46]} 14. Nc1 {[%clk 0:02:26]}  Ra6 {[%clk 0:02:45]} 15. Nd3 {[%clk 0:02:26]}  Nb6 {[%clk 0:02:42]} 16. Nxc5 {[%clk 0:02:27]}  dxc5 {[%clk 0:02:16]} 17. Kd3 {[%clk 0:02:21]}  Kd8 {[%clk 0:01:56]} 18. Rb2 {[%clk 0:02:00]}  Kc7 {[%clk 0:01:46]} 19. Rhb1 {[%clk 0:01:53]}  Rd8 {[%clk 0:01:46]} 20. a3 {[%clk 0:01:52]}  Bd7 {[%clk 0:01:43]} 21. f4 {[%clk 0:01:27]}  cxd5 {[%clk 0:01:35]} 22. Nxd5+ {[%clk 0:00:37]}  Nxd5 {[%clk 0:01:26]} 23. Rxb7+ {[%clk 0:00:31]}  Kd6 {[%clk 0:01:23]} 24. cxd5 {[%clk 0:00:30]}  c4+ {[%clk 0:01:24]} 25. Kc3 {[%clk 0:00:22]}  Bf6 {[%clk 0:01:16]} 26. f5 {[%clk 0:00:16]}  Rc8 {[%clk 0:01:16]} 27. g4 {[%clk 0:00:14]}  Bd8 {[%clk 0:01:12]} 28. Rb8 {[%clk 0:00:12]}  Ba5+ {[%clk 0:01:11]} 29. R8b4 {[%clk 0:00:07]}  f6 {[%clk 0:01:10]} 30. Kd2 {[%clk 0:00:04]}  Rb8 {[%clk 0:01:07]} 31. Kc3 {[%clk 0:00:03]}  Bxb4+ {[%clk 0:01:02]} 32. axb4 {[%clk 0:00:02]}  Bb5 {[%clk 0:01:01]} 33. Bc5+ {[%clk 0:00:02]}  Kd7 {[%clk 0:00:57]} 34. Kb2 {[%clk 0:00:02]}  a3+ {[%clk 0:00:57]} 35. Ka2 {[%clk 0:00:01]}  c3 {[%clk 0:00:58]} 0-1


[Site "https://www.chess.com"]

[Event "Titled Tuesday Blitz January 10 Late 2023"]
[White "Preotu, Razvan"]
[Black "Fisher_TheGalactic"]
[WhiteFideId "2613280"]
[WhiteElo "2475"]
[BlackElo "2556"]
[Result "0-1"]
[Round "10"]
[TimeControl "180+2"]
[Date "2023.01.10"]
[WhiteClock "0:00:17"]
[BlackClock "0:00:20"]

1. e4 {[%clk 0:00:00]}  b6 {[%clk 0:00:00]} 2. d4 {[%clk 0:03:00]}  Bb7 {[%clk 0:02:57]} 3. Bd3 {[%clk 0:03:00]}  Nf6 {[%clk 0:02:57]} 4. Qe2 {[%clk 0:03:01]}  e6 {[%clk 0:02:56]} 5. Nf3 {[%clk 0:02:59]}  d5 {[%clk 0:02:56]} 6. e5 {[%clk 0:02:59]}  Nfd7 {[%clk 0:02:56]} 7. h4 {[%clk 0:02:47]}  c5 {[%clk 0:02:56]} 8. c3 {[%clk 0:02:19]}  Nc6 {[%clk 0:02:55]} 9. a3 {[%clk 0:02:20]}  h6 {[%clk 0:02:55]} 10. Be3 {[%clk 0:02:14]}  c4 {[%clk 0:02:52]} 11. Bc2 {[%clk 0:02:12]}  Qc7 {[%clk 0:02:51]} 12. h5 {[%clk 0:02:12]}  Be7 {[%clk 0:02:51]} 13. Nh4 {[%clk 0:01:48]}  O-O-O {[%clk 0:02:50]} 14. Nd2 {[%clk 0:01:48]}  Na5 {[%clk 0:02:48]} 15. f4 {[%clk 0:01:45]}  f5 {[%clk 0:02:47]} 16. Ng6 {[%clk 0:01:43]}  Rhe8 {[%clk 0:02:20]} 17. g4 {[%clk 0:01:40]}  fxg4 {[%clk 0:02:19]} 18. Qxg4 {[%clk 0:01:40]}  Nf8 {[%clk 0:02:08]} 19. f5 {[%clk 0:01:41]}  exf5 {[%clk 0:02:07]} 20. Bxf5+ {[%clk 0:01:17]}  Kb8 {[%clk 0:02:05]} 21. Nxe7 {[%clk 0:01:18]}  Rxe7 {[%clk 0:02:05]} 22. O-O-O {[%clk 0:01:14]}  Bc8 {[%clk 0:01:58]} 23. Rdf1 {[%clk 0:01:14]}  Bxf5 {[%clk 0:01:56]} 24. Rxf5 {[%clk 0:01:10]}  Ne6 {[%clk 0:01:55]} 25. Rhf1 {[%clk 0:01:10]}  Kb7 {[%clk 0:01:56]} 26. Qg6 {[%clk 0:01:11]}  Rdd7 {[%clk 0:01:48]} 27. Bf2 {[%clk 0:01:12]}  Nb3+ {[%clk 0:01:43]} 28. Nxb3 {[%clk 0:01:04]}  cxb3 {[%clk 0:01:37]} 29. Bh4 {[%clk 0:00:51]}  Nxd4 {[%clk 0:01:37]} 30. Bxe7 {[%clk 0:00:52]}  Nxf5 {[%clk 0:01:29]} 31. Rxf5 {[%clk 0:00:48]}  Rxe7 {[%clk 0:01:29]} 32. e6 {[%clk 0:00:45]}  Qh2 {[%clk 0:01:29]} 33. Rf7 {[%clk 0:00:16]}  Qh1+ {[%clk 0:01:00]} 34. Kd2 {[%clk 0:00:16]}  Qh2+ {[%clk 0:00:56]} 35. Kd3 {[%clk 0:00:16]}  Qc2+ {[%clk 0:00:55]} 36. Kd4 {[%clk 0:00:17]}  Qd2+ {[%clk 0:00:40]} 37. Ke5 {[%clk 0:00:17]}  Qe3+ {[%clk 0:00:40]} 38. Kf5 {[%clk 0:00:17]}  Qe4# {[%clk 0:00:20]} 0-1


[Site "https://www.chess.com"]

[Event "Titled Tuesday Blitz January 10 Late 2023"]
[White "Gavilan Diaz, Mario"]
[Black "Tanenbaum, Zachary"]
[WhiteFideId "2260905"]
[BlackFideId "2060850"]
[WhiteElo "2271"]
[BlackElo "2261"]
[Result "0-1"]
[Round "10"]
[TimeControl "180+2"]
[Date "2023.01.10"]
[WhiteClock "0:00:13"]
[BlackClock "0:01:55"]

1. d4 {[%clk 0:00:00]}  d5 {[%clk 0:00:00]} 2. c4 {[%clk 0:03:00]}  dxc4 {[%clk 0:03:00]} 3. e4 {[%clk 0:03:01]}  b5 {[%clk 0:03:00]} 4. a4 {[%clk 0:03:00]}  c6 {[%clk 0:03:00]} 5. Nc3 {[%clk 0:03:00]}  a6 {[%clk 0:03:00]} 6. axb5 {[%clk 0:02:59]}  cxb5 {[%clk 0:02:59]} 7. Nxb5 {[%clk 0:02:54]}  axb5 {[%clk 0:03:00]} 8. Rxa8 {[%clk 0:02:52]}  Bb7 {[%clk 0:03:01]} 9. Ra1 {[%clk 0:02:52]}  e6 {[%clk 0:03:01]} 10. f3 {[%clk 0:02:44]}  f5 {[%clk 0:03:01]} 11. exf5 {[%clk 0:02:09]}  Nc6 {[%clk 0:03:00]} 12. Be3 {[%clk 0:01:44]}  Nge7 {[%clk 0:03:00]} 13. fxe6 {[%clk 0:01:33]}  Nf5 {[%clk 0:02:53]} 14. Bf4 {[%clk 0:01:27]}  Bb4+ {[%clk 0:02:44]} 15. Kf2 {[%clk 0:01:01]}  Ncxd4 {[%clk 0:02:32]} 16. Ne2 {[%clk 0:00:59]}  Bc5 {[%clk 0:02:22]} 17. Nxd4 {[%clk 0:00:40]}  Bxd4+ {[%clk 0:02:20]} 18. Ke1 {[%clk 0:00:20]}  Qb6 {[%clk 0:02:21]} 19. Be2 {[%clk 0:00:20]}  Qxe6 {[%clk 0:02:20]} 20. Qc2 {[%clk 0:00:19]}  Nh4 {[%clk 0:02:14]} 21. Kf1 {[%clk 0:00:16]}  O-O {[%clk 0:02:03]} 22. Re1 {[%clk 0:00:13]}  Rxf4 {[%clk 0:01:59]} 23. g3 {[%clk 0:00:13]}  Qh3# {[%clk 0:01:55]} 0-1


[Site "https://www.chess.com"]

[Event "Titled Tuesday Blitz January 10 Late 2023"]
[White "Al-Tarboush, Ward"]
[Black "Sai Krishna G V"]
[WhiteFideId "7601450"]
[BlackFideId "5028280"]
[WhiteElo "2256"]
[BlackElo "2384"]
[Result "1-0"]
[Round "10"]
[TimeControl "180+2"]
[Date "2023.01.10"]
[WhiteClock "0:01:37"]
[BlackClock "0:00:20"]

1. e4 {[%clk 0:00:00]}  e5 {[%clk 0:00:00]} 2. Nf3 {[%clk 0:03:00]}  Nc6 {[%clk 0:03:00]} 3. Bb5 {[%clk 0:03:00]}  a6 {[%clk 0:03:00]} 4. Ba4 {[%clk 0:03:01]}  d6 {[%clk 0:03:00]} 5. O-O {[%clk 0:03:01]}  Nf6 {[%clk 0:03:01]} 6. d4 {[%clk 0:03:01]}  b5 {[%clk 0:03:02]} 7. d5 {[%clk 0:02:59]}  Ne7 {[%clk 0:03:00]} 8. Bb3 {[%clk 0:02:57]}  Nxe4 {[%clk 0:02:55]} 9. a4 {[%clk 0:02:57]}  b4 {[%clk 0:02:55]} 10. a5 {[%clk 0:02:56]}  Nc5 {[%clk 0:02:50]} 11. Nbd2 {[%clk 0:02:55]}  g6 {[%clk 0:02:49]} 12. Re1 {[%clk 0:02:52]}  Bg7 {[%clk 0:02:47]} 13. Ne4 {[%clk 0:02:42]}  Nxe4 {[%clk 0:02:46]} 14. Rxe4 {[%clk 0:02:43]}  Rb8 {[%clk 0:02:37]} 15. Qd3 {[%clk 0:02:42]}  f5 {[%clk 0:02:37]} 16. Re1 {[%clk 0:02:34]}  e4 {[%clk 0:02:32]} 17. Qc4 {[%clk 0:02:33]}  Rb5 {[%clk 0:02:17]} 18. Bg5 {[%clk 0:02:33]}  h6 {[%clk 0:01:57]} 19. Bxe7 {[%clk 0:02:29]}  Qxe7 {[%clk 0:01:54]} 20. Nd4 {[%clk 0:02:24]}  Bxd4 {[%clk 0:01:55]} 21. Qxd4 {[%clk 0:02:20]}  O-O {[%clk 0:01:49]} 22. f3 {[%clk 0:02:21]}  Re8 {[%clk 0:01:49]} 23. fxe4 {[%clk 0:02:17]}  fxe4 {[%clk 0:01:48]} 24. Bc4 {[%clk 0:02:16]}  Rc5 {[%clk 0:01:49]} 25. Bd3 {[%clk 0:02:14]}  Bf5 {[%clk 0:01:49]} 26. Qxb4 {[%clk 0:02:12]}  exd3 {[%clk 0:01:43]} 27. Rxe7 {[%clk 0:02:12]}  Rxe7 {[%clk 0:01:28]} 28. cxd3 {[%clk 0:02:11]}  Re2 {[%clk 0:01:29]} 29. Re1 {[%clk 0:02:10]}  Rxe1+ {[%clk 0:01:28]} 30. Qxe1 {[%clk 0:02:03]}  Bxd3 {[%clk 0:01:15]} 31. Qe8+ {[%clk 0:02:04]}  Kg7 {[%clk 0:01:16]} 32. Qe7+ {[%clk 0:02:02]}  Kg8 {[%clk 0:01:15]} 33. Qd8+ {[%clk 0:02:02]}  Kf7 {[%clk 0:01:16]} 34. Qd7+ {[%clk 0:02:00]}  Kf6 {[%clk 0:01:15]} 35. b4 {[%clk 0:01:59]}  Rc1+ {[%clk 0:01:12]} 36. Kf2 {[%clk 0:01:55]}  Rc2+ {[%clk 0:00:58]} 37. Ke3 {[%clk 0:01:55]}  Bb5 {[%clk 0:00:52]} 38. Qe6+ {[%clk 0:01:55]}  Kg7 {[%clk 0:00:48]} 39. Qe7+ {[%clk 0:01:48]}  Kg8 {[%clk 0:00:45]} 40. Qd8+ {[%clk 0:01:48]}  Kf7 {[%clk 0:00:45]} 41. h4 {[%clk 0:01:47]}  Rc3+ {[%clk 0:00:45]} 42. Kd2 {[%clk 0:01:47]}  Rc4 {[%clk 0:00:41]} 43. g4 {[%clk 0:01:45]}  Rd4+ {[%clk 0:00:42]} 44. Kc3 {[%clk 0:01:44]}  Rxd5 {[%clk 0:00:28]} 45. Qxc7+ {[%clk 0:01:41]}  Ke6 {[%clk 0:00:26]} 46. Qc8+ {[%clk 0:01:40]}  Ke5 {[%clk 0:00:25]} 47. Qh8+ {[%clk 0:01:40]}  Kf4 {[%clk 0:00:25]} 48. Qxh6+ {[%clk 0:01:39]}  Kxg4 {[%clk 0:00:21]} 49. Qxg6+ {[%clk 0:01:40]}  Kxh4 {[%clk 0:00:20]} 50. Qe4+ {[%clk 0:01:40]}  Kg3 {[%clk 0:00:20]} 51. Qxd5 {[%clk 0:01:37]} 1-0


[Site "https://www.chess.com"]